[Event "Berlin Championship 2024"]
[Site "Berlin"]
[Date "2024.04.04"]
[Round "6.7"]
[White "Klenburg, Michael"]
[Black "Eilenberg, Jonas"]
[Result "1/2-1/2"]
[ECO "B30"]
[WhiteElo "2328"]
[BlackElo "2303"]
[Annotator "RC"]
[PlyCount "40"]
[EventDate "2024.03.30"]
[EventType "swiss"]
[EventCountry "GER"]
[SourceTitle "playchess.com"]
[Source "ChessBase"]
[SourceQuality "1"]
[TimeControl "40/5400+30:1800+30"]

1. e4 {[%emt 0:13:02]} c5 {[%emt 0:00:46]} 2. Nf3 {[%emt 0:00:15]} Nc6 {[%emt 0:00:07]} 3. Bb5 {[%emt 0:00:12]} e6 {[%emt 0:00:18]} 4. O-O {[%emt 0:01:09]} Nge7 {[%emt 0:00:13]} 5. c3 {[%emt 0:00:30]} d5 {[%emt 0:00:38]} 6. exd5 {[%emt 0:01:09]} Qxd5 {[%emt 0:00:29]} 7. d4 {[%emt 0:01:30]} cxd4 {[%emt 0:03:20]} 8. c4 {[%emt 0:02:56]} Qd6 {[%emt 0:08:35]} 9. Nxd4 {[%emt 0:01:45]} a6 {[%emt 0:03:51]} 10. Ba4 {[%emt 0:01:42]} Bd7 {[%emt 0:03:49]} 11. Nxc6 {[%emt 0:05:44]} Nxc6 {[%emt 0:01:25]} 12. Nc3 {[%emt 0:00:14]} Qc7 {[%emt 0:07:13]} 13. Re1 {[%emt 0:04:31]} Be7 {[%emt 0:00:30]} 14. Qf3 {[%emt 0:08:14]} Nd4 {[%emt 0:15:47]} 15. Bxd7+ {[%emt 0:01:57]} Qxd7 {[%emt 0:00:05]} 16. Qe4 {[%emt 0:05:52]} O-O {[%emt 0:06:03]} 17. Rd1 {[%emt 0:02:41]} Rfd8 {[%emt 0:00:40]} 18. Bf4 {[%emt 0:02:07]} Bf6 {[%emt 0:03:13]} 19. Be5 {[%emt 0:03:07]} Bxe5 {[%emt 0:01:05]} 20. Qxe5 {[%emt 0:00:04]} Rac8 {[%emt 0:03:03]} 1/2-1/2

[Event "Berlin Championship 2024"]
[Site "Berlin"]
[Date "2024.04.04"]
[Round "6.8"]
[White "Nogly, Christoph"]
[Black "Muse, Drazen"]
[Result "1/2-1/2"]
[ECO "E90"]
[WhiteElo "2228"]
[BlackElo "2316"]
[Annotator "RC"]
[PlyCount "114"]
[EventDate "2024.03.30"]
[EventType "swiss"]
[EventCountry "GER"]
[SourceTitle "playchess.com"]
[Source "ChessBase"]
[SourceQuality "1"]
[TimeControl "40/5400+30:1800+30"]

1. d4 {[%emt 0:00:03]} Nf6 {[%emt 0:10:27]} 2. c4 {[%emt 0:00:06]} g6 {[%emt 0:00:50]} 3. Nc3 {[%emt 0:00:06]} Bg7 {[%emt 0:00:02]} 4. e4 {[%emt 0:00:08]} d6 {[%emt 0:00:05]} 5. h3 {[%emt 0:00:05]} O-O {[%emt 0:00:31]} 6. Be3 {[%emt 0:00:07]} Na6 {[%emt 0:01:01]} 7. Nf3 {[%emt 0:00:38]} c5 {[%emt 0:06:09]} 8. d5 {[%emt 0:00:33]} e6 {[%emt 0:00:54]} 9. Bd3 {[%emt 0:00:41]} exd5 {[%emt 0:00:12]} 10. exd5 {[%emt 0:00:05]} Re8 {[%emt 0:00:22]} 11. O-O {[%emt 0:00:16]} Nc7 {[%emt 0:05:12]} 12. a4 {[%emt 0:01:58]} Na6 {[%emt 0:01:30]} 13. Bg5 {[%emt 0:08:27]} Nb4 {[%emt 0:03:48]} 14. Bb1 {[%emt 0:00:28]} h6 {[%emt 0:00:32]} 15. Bh4 {[%emt 0:00:08]} g5 {[%emt 0:03:12]} 16. Bg3 {[%emt 0:02:19]} Nh5 {[%emt 0:01:01]} 17. Qd2 {[%emt 0:39:21]} f5 {[%emt 0:07:46]} 18. Ra3 {[%emt 0:01:50]} Nf6 {[%emt 0:02:08]} 19. Nxg5 {[%emt 0:04:41]} hxg5 {[%emt 0:00:22]} 20. Qxg5 {[%emt 0:00:01]} Nh7 {[%emt 0:02:15]} 21. Qh5 {[%emt 0:01:03]} Rf8 {[%emt 0:00:18]} 22. Nb5 {[%emt 0:03:52]} Nf6 {[%emt 0:01:48]} 23. Qg6 {[%emt 0:04:12]} Ne8 {[%emt 0:00:37]} 24. Nxd6 {[%emt 0:14:55]} Nxd6 {[%emt 0:00:56]} 25. Qxd6 {[%emt 0:00:07]} b6 {[%emt 0:00:41]} 26. Re1 {[%emt 0:01:02]} Qxd6 {[%emt 0:08:47]} 27. Bxd6 {[%emt 0:00:02]} Rd8 {[%emt 0:00:13]} 28. Rg3 {[%emt 0:06:26]} Kh8 {[%emt 0:01:27]} 29. Re7 {[%emt 0:06:20]} Bf6 {[%emt 0:00:10]} 30. Be5 {[%emt 0:00:32]} Bxe5 {[%emt 0:00:06]} 31. Rxe5 {[%emt 0:00:05]} Rb8 {[%emt 0:00:17]} 32. Re7 {[%emt 0:02:52]} Rb7 {[%emt 0:01:18]} 33. Rgg7 {[%emt 0:00:29]} Rdd7 {[%emt 0:00:49]} 34. Rxd7 {[%emt 0:01:45]} Bxd7 {[%emt 0:00:14]} 35. Re7 {[%emt 0:00:30]} Bc6 {[%emt 0:00:18]} 36. Rxb7 {[%emt 0:00:29]} Bxb7 {[%emt 0:00:05]} 37. Bxf5 {[%emt 0:00:06]} a6 {[%emt 0:00:10]} 38. f4 {[%emt 0:00:35]} b5 {[%emt 0:00:03]} 39. axb5 {[%emt 0:00:06]} axb5 {[%emt 0:00:05]} 40. b3 {[%emt 0:02:20]} bxc4 {[%emt 0:00:23]} 41. bxc4 {[%emt 0:30:01]} Ba6 {[%emt 0:30:14]} 42. d6 {[%emt 0:00:00]} Bxc4 {[%emt 0:00:00]} 43. d7 {[%emt 0:00:00]} Nc6 {[%emt 0:00:00]} 44. h4 {[%emt 0:00:00]} Bd5 {[%emt 0:00:00]} 45. h5 {[%emt 0:00:00]} c4 {[%emt 0:00:00]} 46. Kf2 {[%emt 0:00:00]} c3 {[%emt 0:00:00]} 47. Ke3 {[%emt 0:00:00]} Bxg2 {[%emt 0:00:00]} 48. Kd3 {[%emt 0:00:00]} Kg7 {[%emt 0:00:00]} 49. Kxc3 {[%emt 0:00:00]} Bf3 {[%emt 0:00:00]} 50. Bg6 {[%emt 0:00:00]} Kh6 {[%emt 0:00:00]} 51. Kc4 {[%emt 0:00:00]} Bxh5 {[%emt 0:00:00]} 52. Kc5 {[%emt 0:00:00]} Nd8 {[%emt 0:00:00]} 53. Bf5 {[%emt 0:00:00]} Kg7 {[%emt 0:00:00]} 54. Kd6 {[%emt 0:00:00]} Kf6 {[%emt 0:00:00]} 55. Bh3 {[%emt 0:00:00]} Bd1 {[%emt 0:00:00]} 56. Bg2 {[%emt 0:00:00]} Ba4 {[%emt 0:00:00]} 57. Bd5 {[%emt 0:00:00]} Bxd7 {[%emt 0:00:00]} 1/2-1/2

[Event "Berlin Championship 2024"]
[Site "Berlin"]
[Date "2024.04.05"]
[Round "7.1"]
[White "Poltorak, Sebastian"]
[Black "Lagunow, Raphael"]
[Result "1-0"]
[ECO "D12"]
[WhiteElo "2392"]
[BlackElo "2421"]
[Annotator "TA"]
[PlyCount "91"]
[EventDate "2024.03.30"]
[EventType "swiss"]
[EventCountry "GER"]
[SourceTitle "playchess.com"]
[Source "ChessBase"]
[SourceQuality "1"]
[TimeControl "40/5400+30:1800+30"]

{[%evp 15,91,24,32,0,61,44,47,38,46,44,52,16,60,63,80,54,56,51,55,57,61,3,53,36,61,37,47,37,34,31,87,97,108,102,104,91,90,78,90,95,90,85,80,79,94,41,92,99,131,139,131,139,131,139,120,62,189,180,296,301,335,305,481,398,398,368,585,570,29958,29958,29962,29961,29986,29979,29979,29980,29979,29975]} 1. d4 {[%emt 0:00:06]} d5 {[%emt 0:00:05]} 2. c4 {[%emt 0:00:15]} c6 {[%emt 0:00:05]} 3. Nc3 {[%emt 0:00:05]} Nf6 {[%emt 0:00:06]} 4. e3 {[%emt 0:00:12]} Bf5 {[%emt 0:00:10]} 5. Nf3 {[%emt 0:00:07]} e6 {[%emt 0:00:15]} 6. Nh4 {[%emt 0:00:07]} Be4 {[%emt 0:00:05]} 7. f3 {[%emt 0:00:17]} Bg6 {[%emt 0:00:06]} 8. Qb3 {[%emt 0:00:18]} Qc7 {[%emt 0:01:00]} 9. cxd5 {[%emt 0:01:01]} Nxd5 {[%emt 0:02:36]} (9... cxd5 $11 10. Bd2 a6) 10. Nxg6 {[%emt 0:03:39]} hxg6 {[%emt 0:00:17]} 11. e4 {[%emt 0:00:11] White is slightly better.} Nxc3 {[%emt 0:07:12]} 12. bxc3 {[%emt 0:00:08]} Nd7 {[%emt 0:04:39][%cal Of8e7]} 13. Be3 {[%emt 0:02:37]} Be7 {[%emt 0:10:38]} 14. g3 {[%emt 0:07:29]} g5 {[%emt 0:21:05]} 15. Rb1 {[%emt 0:15:33]} b5 {[%emt 0:01:36]} 16. Be2 {[%emt 0:03:14]} a6 {[%emt 0:02:30]} 17. O-O {[%emt 0:05:56]} O-O {[%emt 0:07:02]} 18. c4 {[%emt 0:05:53]} (18. Kg2 $14) 18... e5 {[%emt 0:06:44]} (18... c5 $11) 19. d5 $14 {[%emt 0:00:55][%cal Rc4b5]} cxd5 {[%emt 0:00:39]} 20. cxd5 {[%emt 0:02:20] Black must now prevent Rfc1.} Bc5 {[%emt 0:00:49]} 21. Kg2 {[%emt 0:03:35]} Bxe3 {[%emt 0:06:30]} 22. Qxe3 {[%emt 0:02:09][%cal Of1c1]} Qa5 {[%emt 0:00:09]} (22... Qc2 $14) 23. Rb2 $16 {[%emt 0:01:48]} ({Much worse is} 23. Qxg5 Qxa2 24. Qe3 Rfc8 $11) 23... Rfc8 {[%emt 0:03:38] Dodges Rc1} 24. Qxg5 {[%emt 0:02:13]} Qa3 {[%emt 0:01:09]} 25. Qd2 {[%emt 0:03:48]} Rc3 {[%emt 0:00:58]} 26. Rfb1 {[%emt 0:02:28][%cal Bf1b1,Bb1b2,Bb2d2][%mdl 32]} Rac8 {[%emt 0:03:44]} 27. Rb3 {[%emt 0:01:37]} Qc5 {[%emt 0:03:16]} 28. Rxc3 {[%emt 0:03:48]} Qxc3 {[%emt 0:00:05]} 29. Rb2 {[%emt 0:00:11]} Kf8 {[%emt 0:04:36][%cal Bg8f8,Bf8e7,Be7d7,Bd7d6,Bd6d5,Bd5c6][%mdl 32]} 30. f4 {[%emt 0:01:25]} (30. h4 $16) 30... Qxd2 {[%emt 0:04:37]} ({Black should play} 30... Rc5 $14) 31. Rxd2 $14 {[%emt 0:00:14][%mdl 4096] Endgame. KRB-KRN} Ke7 {[%emt 0:00:18]} 32. Bg4 $1 {[%emt 0:02:19]} Rc4 {[%emt 0:00:21] [#]} 33. Bxd7 $1 {[%emt 0:02:02]} Kxd7 $16 {[%emt 0:10:00] KR-KR} 34. Kf3 {[%emt 0:00:06]} ({Stronger than} 34. fxe5 Rxe4 35. Rf2 Ke8 $15) 34... Kd6 {[%emt 0:00:00] [#]} 35. Re2 {[%emt 0:05:06]} (35. h4 $1 $16) 35... exf4 {[%emt 0:00:00] Black cannot hold the game after this.} (35... a5 $14) 36. gxf4 $18 {[%emt 0:00:36]} ({Don't do} 36. Kxf4 $6 b4 $16) 36... f5 {[%emt 0:00:00]} (36... a5 $142) 37. exf5 {[%emt 0:00:23][%cal Be4f5,Bf5f6,Bf6f7][%mdl 32]} Kxd5 {[%emt 0:00:00]} 38. Rd2+ {[%emt 0:00:48]} Kc6 {[%emt 0:00:00]} 39. Rg2 {[%emt 0:08:09]} Rc3+ {[%emt 0:00:00]} 40. Ke4 {[%emt 0:00:15]} Rh3 {[%emt 0:02:56]} (40... Kd6 $142 41. Rxg7 Rh3) 41. Rxg7 {[%emt 0:31:34]} Rxh2 {[%emt 0:04:33]} 42. f6 {[%emt 0:00:00] White mates.} Kd6 {[%emt 0:02:28]} 43. Kf5 {[%emt 0:00:00]} Rxa2 {[%emt 0:08:02]} 44. Ra7 {[%emt 0:00:00]} Rc2 {[%emt 0:00:27]} 45. f7 {[%emt 0:00:00]} Rc8 {[%emt 0:00:30]} 46. Kf6 {[%emt 0:00:00] Weighted Error Value: White=0.10 (very precise) /Black=0.34.  Mistake:       	White=3     	Black=7      Inaccurate:     	White=2     	Black=3      OK:         	White=10    	Black=9      Best:        	White=7     	Black=2      Strong:       	White=2     	---} 1-0

[Event "Berlin Championship 2024"]
[Site "Berlin"]
[Date "2024.04.05"]
[Round "7.2"]
[White "Foerster, Jonas"]
[Black "Jahnz, Laurin"]
[Result "1-0"]
[ECO "D40"]
[WhiteElo "2238"]
[BlackElo "2051"]
[Annotator "RC"]
[PlyCount "113"]
[EventDate "2024.03.30"]
[EventType "swiss"]
[EventCountry "GER"]
[SourceTitle "playchess.com"]
[Source "ChessBase"]
[SourceQuality "1"]
[TimeControl "40/5400+30:1800+30"]

1. d4 {[%emt 0:18:19]} d5 {[%emt 0:00:05]} 2. Nf3 {[%emt 0:00:25]} Nf6 {[%emt 0:00:04]} 3. c4 {[%emt 0:00:40]} dxc4 {[%emt 0:00:13]} 4. e3 {[%emt 0:06:12]} e6 {[%emt 0:00:13]} 5. Bxc4 {[%emt 0:00:18]} c5 {[%emt 0:00:18]} 6. O-O {[%emt 0:00:48]} Nc6 {[%emt 0:00:48]} 7. Nc3 {[%emt 0:04:30]} a6 {[%emt 0:01:15]} 8. a3 {[%emt 0:01:35]} b5 {[%emt 0:00:45]} 9. Ba2 {[%emt 0:00:05]} Bb7 {[%emt 0:01:07]} 10. d5 {[%emt 0:03:22]} exd5 {[%emt 0:00:39]} 11. Nxd5 {[%emt 0:00:10]} Nxd5 {[%emt 0:00:17]} 12. Bxd5 {[%emt 0:05:27]} Be7 {[%emt 0:03:45]} 13. Ne5 {[%emt 0:12:32]} Nxe5 {[%emt 0:00:13]} 14. Bxb7 {[%emt 0:00:05]} Qxd1 {[%emt 0:03:00]} 15. Rxd1 {[%emt 0:00:13]} Ra7 {[%emt 0:00:49]} 16. Bd5 {[%emt 0:00:44]} O-O {[%emt 0:03:52]} 17. e4 {[%emt 0:04:37]} Nd7 {[%emt 0:26:30]} 18. a4 {[%emt 0:00:43]} b4 {[%emt 0:00:32]} 19. Be3 {[%emt 0:02:42]} Bf6 {[%emt 0:09:15]} 20. Rd2 {[%emt 0:08:32]} Rc7 {[%emt 0:02:56]} 21. Rc1 {[%emt 0:11:49]} Rfc8 {[%emt 0:00:09]} 22. Bc4 {[%emt 0:01:29]} Ra8 {[%emt 0:12:54]} 23. f4 {[%emt 0:02:20]} Nb6 {[%emt 0:01:54]} 24. e5 {[%emt 0:00:59]} Nxc4 {[%emt 0:00:45]} 25. Rxc4 {[%emt 0:00:06]} Be7 {[%emt 0:00:04]} 26. Kf2 {[%emt 0:00:44]} Kf8 {[%emt 0:01:20]} 27. Rd5 {[%emt 0:00:51]} Rac8 {[%emt 0:00:05]} 28. Kf3 {[%emt 0:00:30]} Rc6 {[%emt 0:02:12]} 29. b3 {[%emt 0:02:15]} Ke8 {[%emt 0:03:36]} 30. f5 {[%emt 0:03:10]} f6 {[%emt 0:00:57]} 31. e6 {[%emt 0:01:33]} Bd6 {[%emt 0:00:36]} 32. g3 {[%emt 0:00:52]} g6 {[%emt 0:00:30]} 33. g4 {[%emt 0:01:26]} R8c7 {[%emt 0:01:17]} 34. h3 {[%emt 0:00:58]} Ke7 {[%emt 0:00:04]} 35. Ke4 {[%emt 0:00:44]} g5 {[%emt 0:01:51]} 36. Rd1 {[%emt 0:00:46]} Be5 {[%emt 0:01:18]} 37. Bxg5 {[%emt 0:00:15]} Bd4 {[%emt 0:00:32]} 38. Be3 {[%emt 0:00:31]} Bxe3 {[%emt 0:01:10]} 39. Kxe3 {[%emt 0:00:03]} Rd6 {[%emt 0:00:09]} 40. Rxd6 {[%emt 0:04:45]} Kxd6 {[%emt 0:00:02]} 41. Re4 {[%emt 0:31:55]} Re7 {[%emt 0:30:24]} 42. h4 {[%emt 0:00:00]} h6 {[%emt 0:00:00]} 43. a5 {[%emt 0:00:00]} Rg7 {[%emt 0:00:00]} 44. Kd3 {[%emt 0:00:00]} Ke7 {[%emt 0:00:00]} 45. Kc4 {[%emt 0:00:00]} h5 {[%emt 0:00:00]} 46. gxh5 {[%emt 0:00:00]} Rh7 {[%emt 0:00:00]} 47. Kxc5 {[%emt 0:00:00]} Rxh5 {[%emt 0:00:00]} 48. Rf4 {[%emt 0:00:00]} Rh8 {[%emt 0:00:00]} 49. Kxb4 {[%emt 0:00:00]} Rb8+ {[%emt 0:00:00]} 50. Ka4 {[%emt 0:00:00]} Kd6 {[%emt 0:00:00]} 51. Re4 {[%emt 0:00:00]} Ke7 {[%emt 0:00:00]} 52. Rd4 {[%emt 0:00:00]} Rb5 {[%emt 0:00:00]} 53. Rd7+ {[%emt 0:00:00]} Ke8 {[%emt 0:00:00]} 54. h5 {[%emt 0:00:00]} Rxf5 {[%emt 0:00:00]} 55. h6 {[%emt 0:00:00]} Rh5 {[%emt 0:00:00]} 56. h7 {[%emt 0:00:00]} f5 {[%emt 0:00:00]} 57. Rg7 {[%emt 0:00:00]} 1-0

[Event "Berlin Championship 2024"]
[Site "Berlin"]
[Date "2024.04.05"]
[Round "7.3"]
[White "Baldauf, Marco"]
[Black "Florstedt, Johannes"]
[Result "1-0"]
[ECO "A33"]
[WhiteElo "2481"]
[BlackElo "2348"]
[Annotator "TA"]
[PlyCount "69"]
[EventDate "2024.03.30"]
[EventType "swiss"]
[EventCountry "GER"]
[SourceTitle "playchess.com"]
[Source "ChessBase"]
[SourceQuality "1"]
[TimeControl "40/5400+30:1800+30"]

{[%evp 13,69,1,0,0,0,-4,9,0,6,4,0,0,0,0,0,0,0,0,0,0,0,-26,0,3,0,6,20,0,15,-14,0,0,98,95,95,78,91,95,89,89,104,110,211,212,385,376,569,569,602,602,609,610,607,597,712,675,691,675]} 1. Nf3 {[%emt 0:00:03][%cal Bg1f3,Bf3d4,Bd4b5][%mdl 32]} Nf6 {[%emt 0:10:18]} 2. c4 {[%emt 0:00:05]} c5 {[%emt 0:00:06]} 3. Nc3 {[%emt 0:00:11]} Nc6 {[%emt 0:00:25]} 4. d4 {[%emt 0:00:12]} cxd4 {[%emt 0:00:08]} 5. Nxd4 {[%emt 0:00:01]} e6 {[%emt 0:00:15]} 6. g3 {[%emt 0:00:05]} Qb6 {[%emt 0:02:10]} 7. Ndb5 {[%emt 0:00:03]} Ne5 {[%emt 0:01:21][%cal Of8c5]} 8. Bf4 {[%emt 0:00:18]} Nfg4 {[%emt 0:00:44][%cal Oe5f3] ( -> ...Nf3+!)} 9. e3 {[%emt 0:00:10]} a6 {[%emt 0:01:23]} 10. h3 {[%emt 0:00:04] The position is equal.} axb5 {[%emt 0:00:41]} 11. hxg4 {[%emt 0:00:06]} Nxc4 {[%emt 0:00:48]} 12. Qb3 $1 {[%emt 0:01:00][%csl LRb5,LRc4]} d5 $1 {[%emt 0:08:12] Strongly threatening ...b4.} 13. Bxc4 {[%emt 0:00:04]} dxc4 {[%emt 0:00:28]} 14. Qxb5+ {[%emt 0:00:04]} Qxb5 {[%emt 0:00:26]} 15. Nxb5 {[%emt 0:00:05]} Bb4+ {[%emt 0:05:31]} 16. Ke2 {[%emt 0:00:05] Nc7+ is the strong threat.} Ke7 {[%emt 0:00:34]} 17. Rhd1 {[%emt 0:23:12]} Ra6 {[%emt 0:13:27]} 18. a3 {[%emt 0:10:22]} Bc5 {[%emt 0:04:39]} 19. Nc3 {[%emt 0:07:51][%cal Bb5c3,Bc3e4,Be4c5][%mdl 32]} Bd7 {[%emt 0:07:19][%cal Bc8d7,Bd7c6,Bc6b5][%mdl 32]} 20. g5 {[%emt 0:00:34]} Bc6 {[%emt 0:06:56] Inhibits Ne4.} 21. Rd2 {[%emt 0:12:06]} b5 {[%emt 0:11:31]} (21... Rb6 {simplifies} 22. e4 Rd8 23. Rxd8 Kxd8 24. Rb1 Rb3) 22. Rad1 {[%emt 0:00:16][%cal Oc3e4]} b4 {[%emt 0:00:19] [#]} (22... f6 $11 {remains equal.}) 23. Ne4 $1 $16 {[%emt 0:26:32]} c3 {[%emt 0:06:26]} (23... Bxe4 24. Rd7+ Kf8 25. Rd8+ Ke7 26. R1d7#) 24. Nxc5 {[%emt 0:00:22]} Bb5+ {[%emt 0:05:12] [#]} 25. Kf3 $1 {[%emt 0:01:00]} cxd2 {[%emt 0:00:43]} 26. Nxa6 {[%emt 0:00:04]} ({But not} 26. axb4 Rd8 $14) 26... bxa3 {[%emt 0:01:59]} 27. Nc5 {[%emt 0:10:21]} axb2 {[%emt 0:01:53] [#]} (27... a2 $16) 28. Be5 $1 $18 {[%emt 0:01:12]} Rc8 $2 {[%emt 0:00:46]} (28... b1=N) 29. Bxb2 $1 {[%emt 0:00:17]} Rd8 {[%emt 0:04:46]} ({Of course not} 29... Rxc5 30. Ba3 $18 (30. Rxd2 Rxg5 31. Kg2 Bc6+ 32. f3 f6 $15)) (29... Bc6+ {is a better defense.} 30. e4 Kf8 31. Rxd2 Kg8) 30. Bxg7 {[%emt 0:06:44] And now Bf6+ would win. White is clearly winning.} Rd5 {[%emt 0:00:06]} 31. Bf6+ {[%emt 0:00:22]} Ke8 {[%emt 0:00:01]} 32. Ne4 {[%emt 0:00:31]} Bc6 {[%emt 0:00:11]} 33. g4 {[%emt 0:00:10] Wards off Rf5+} e5 {[%emt 0:03:35]} 34. Kg3 {[%emt 0:01:19]} Rd3 {[%emt 0:00:30]} 35. f3 {[%emt 0:01:13] Weighted Error Value: White=0.02 (flawless) /Black=0.37.  Mistake:       	---       	Black=4      Inaccurate:     	White=2     	Black=1      OK:         	White=10    	Black=12     Best:        	White=3     	---        Strong:       	White=4     	Black=1      Brilliant:      	White=1     	---} 1-0

[Event "Berlin Championship 2024"]
[Site "Berlin"]
[Date "2024.04.05"]
[Round "7.4"]
[White "Polzin, Rainer"]
[Black "Schmidek, Emil"]
[Result "1-0"]
[ECO "B12"]
[WhiteElo "2401"]
[BlackElo "2439"]
[Annotator "TA"]
[PlyCount "69"]
[EventDate "2024.03.30"]
[EventType "swiss"]
[EventCountry "GER"]
[SourceTitle "playchess.com"]
[Source "ChessBase"]
[SourceQuality "1"]
[TimeControl "40/5400+30:1800+30"]

{[%evp 10,69,22,18,34,29,32,35,35,18,8,16,22,0,0,-11,89,-25,-17,-31,6,-13,0,-35,-40,-85,-73,-49,28,24,25,22,20,18,21,14,14,23,10,11,46,44,79,71,85,80,86,50,81,78,81,86,79,47,120,120,480,465,477,472,29961,29962]} 1. e4 {[%emt 0:00:03]} c6 {[%emt 0:00:07]} 2. d4 {[%emt 0:00:06]} d5 {[%emt 0:00:06]} 3. e5 {[%emt 0:00:04]} Bf5 {[%emt 0:00:08]} 4. Nd2 {[%emt 0:00:04]} e6 {[%emt 0:00:09]} 5. Nb3 {[%emt 0:00:02]} Nd7 {[%emt 0:00:11]} 6. Nf3 {[%emt 0:00:09]} Ne7 {[%emt 0:00:09]} 7. Be2 {[%emt 0:00:52]} h6 {[%emt 0:00:29]} 8. O-O {[%emt 0:00:29]} g5 {[%emt 0:00:37] White is slightly better.} 9. Bd2 {[%emt 0:00:52]} a5 {[%emt 0:01:08]} 10. a4 {[%emt 0:02:55]} Bg7 {[%emt 0:00:08]} 11. Rc1 {[%emt 0:31:57]} O-O {[%emt 0:12:39]} 12. Qe1 {[%emt 0:04:07][%cal Oh2h4]} b6 {[%emt 0:35:51] [#]} (12... Ng6 $11) 13. c4 {[%emt 0:00:16]} ({White should play} 13. h4 $1 $16) 13... c5 $11 {[%emt 0:08:51]} 14. dxc5 {[%emt 0:16:14]} Nxe5 {[%emt 0:02:30]} 15. Nxe5 {[%emt 0:09:13]} Bxe5 {[%emt 0:00:03]} 16. Bc3 {[%emt 0:00:42]} Bf4 {[%emt 0:08:23]} (16... d4 17. Bf3 Ng6 18. Nxd4 Bxd4 19. Bxa8 Bxc3 20. Rxc3 $17 (20. Qxc3 $2 Qxa8 21. f3 Nf4 $19)) 17. cxb6 {[%emt 0:21:04]} Qxb6 {[%emt 0:02:21]} 18. Nd4 {[%emt 0:00:13]} Bg6 {[%emt 0:08:06]} (18... Bxc1 $15 19. Qxc1 dxc4 20. Bxc4 Rfc8) 19. Rd1 {[%emt 0:02:50]} Be5 {[%emt 0:09:09]} 20. Bf3 $36 {[%emt 0:02:03][%mdl 2048] White is pushing.} Bg7 {[%emt 0:01:02]} 21. cxd5 {[%emt 0:02:24]} Nxd5 {[%emt 0:00:22]} 22. Bxd5 {[%emt 0:00:02]} exd5 {[%emt 0:00:01]} 23. Qd2 {[%emt 0:00:26]} Rfc8 {[%emt 0:02:52]} 24. Nb5 {[%emt 0:01:09][%cal Bd4b5,Bb5c3,Bc3d5,Bd5e7][%mdl 32]} Bxc3 {[%emt 0:00:19]} 25. Nxc3 {[%emt 0:00:40]} Qb3 {[%emt 0:02:02][%cal Od5d4]} 26. Nxd5 {[%emt 0:00:43] aiming for Ne7+.} Rc2 {[%emt 0:05:47] [#]} 27. Ne7+ $1 {[%emt 0:00:50]} Kh7 {[%emt 0:00:00]} 28. Qd6 {[%emt 0:00:29] And now Nxg6 would win.} Qe6 {[%emt 0:00:00]} 29. Qxe6 {[%emt 0:01:47]} fxe6 {[%emt 0:00:00]} 30. Nxg6 {[%emt 0:00:33]} Kxg6 $16 {[%emt 0:00:00] KRR-KRR} 31. Rd6 {[%emt 0:00:25]} Kf5 {[%emt 0:00:00]} (31... Re2 $14) 32. Re1 {[%emt 0:00:55]} Rb8 $2 {[%emt 0:00:00][%mdl 8192]} (32... Re8 $16 {is tougher.} 33. Rb6 h5) 33. Rdxe6 $18 {[%emt 0:00:44]} (33. Rexe6 $2 {gets mated.} Rc1+ (33... Rbxb2 34. Rf6+ Ke5 35. Rde6+ Kd5 36. Re1 $16) (33... Rbxb2 34. Rf6+ Ke5 35. Rde6+ Kd5 36. Re1 $16)) 33... Rc5 {[%emt 0:00:13] Prevents R1e5+} 34. Rxh6 {[%emt 0:00:45]} Rxb2 {[%emt 0:00:35]} (34... Rg8 $18 35. h3 Rg6) 35. h3 {[%emt 0:00:14] Weighted Error Value: White=0.15 (very precise) /Black=0.65.  Loses game:     	---       	Black=1      Mistake:       	White=1     	Black=4      Inaccurate:     	White=4     	Black=4      OK:         	White=9     	Black=8      Best:        	White=5     	Black=2      Strong:       	White=1     	---} 1-0